bitfinex/quotes_ETHUSD_20250720
["timestamp","ask_amount","ask_price","bid_price","bid_amount"]
[1752988997505,6.93695745,3645.7,3645.6,1.26250001]
[1752988998817,6.93695745,3645.7,3645.6,0.82880001]
[1752988999022,8.78322907,3645.7,3645.6,1e-08]
[1752988999221,12.385883,3645.7,3645.6,1e-08]
[1752989000767,3.29386061,3644.5,3644.4,0.1368]
[1752989000904,7.08131119,3644.3,3643.5,0.4337]
[1752989001109,11.28331119,3644.3,3643.5,0.4337]
[1752989001405,11.28331119,3644.3,3643.2,0.8288]
[1752989001610,11.74301119,3644.3,3644.2,1e-08]
[1752989001810,13.03928281,3644.3,3644.2,1e-08]
[1752989002243,16.18538291,3644.3,3644.2,1e-08]
[1752989003007,16.32077578,3644.3,3644.2,1e-08]
[1752989005541,15.86107578,3644.3,3644.2,1e-08]
[1752989006048,12.57958281,3644.3,3644.2,1e-08]
[1752989006346,10.49601119,3644.3,3644.2,1e-08]
[1752989008345,10.93951119,3644.3,3644.2,1e-08]
[1752989009060,11.74561119,3644.3,3644.2,1e-08]
[1752989010629,10.49701119,3644.3,3644.2,1e-08]
[1752989010858,6.29401119,3644.3,3644.2,1e-08]
[1752989011036,10.49601119,3644.3,3644.2,1e-08]
[1752989011452,10.93951119,3644.3,3644.2,1e-08]
[1752989013455,10.49601119,3644.3,3644.2,1e-08]
[1752989014460,5.74401119,3644.3,3644.2,1e-08]
[1752989014634,5.74401119,3644.3,3644.2,0.43800001]
[1752989014954,2.74401119,3644.3,3644.2,0.43800001]
[1752989015269,6.94601119,3644.3,3644.2,0.43800001]
[1752989015449,6.94701119,3644.3,3644.2,0.42994001]
[1752989015856,2.74411673,3644.2,3644.0,0.7881]
[1752989016030,6.94616179,3644.1,3644.0,0.7881]
[1752989016672,4.202,3644.1,3644.0,0.7881]
[1752989017272,4.201,3644.1,3644.0,0.7881]
[1752989017566,4.201,3644.1,3644.0,1.2261]
[1752989019062,6.94516179,3644.1,3644.0,0.7881]
[1752989019428,2.74438685,3643.9,3643.8,0.7817]
[1752989019650,6.94438685,3643.9,3643.8,0.7817]
[1752989020056,2.74446304,3643.7,3643.6,0.9185]
[1752989020230,6.94546304,3643.7,3643.6,0.9185]
[1752989020575,6.94546304,3643.7,3643.6,1.3565]
[1752989020871,6.94546304,3643.7,3643.6,0.7817]
[1752989021076,2.74461369,3643.5,3643.4,0.7827]
[1752989021278,6.94561369,3643.5,3643.4,0.7827]
[1752989021434,6.94561369,3643.5,3643.4,1.2207]
[1752989022081,4.201,3643.5,3643.4,0.7827]
[1752989022237,4.201,3643.5,3643.4,1.2207]
[1752989022433,6.94561369,3643.5,3643.4,1.2207]
[1752989022769,4.201,3643.5,3643.4,1.2207]
[1752989023010,6.94561369,3643.5,3643.4,0.7827]
[1752989023162,4.201,3643.5,3643.4,1.2207]
[1752989023516,0.55,3644.2,3643.5,0.7692]
[1752989023664,2.74433708,3643.9,3643.6,0.438]
[1752989023864,4.199,3643.8,3643.6,0.438]
[1752989024312,2.74446304,3643.7,3643.5,0.7692]
[1752989024464,6.94446304,3643.7,3643.5,0.7692]
[1752989025091,2.74446304,3643.7,3643.6,0.438]
[1752989025297,6.94346304,3643.7,3643.6,0.438]
[1752989027700,2.74461369,3643.5,3643.4,0.001]
[1752989027888,6.94346304,3643.7,3643.5,0.438]
[1752989027889,2.74446326,3643.7,3643.5,0.438]
[1752989028093,6.94255579,3643.6,3643.4,0.8186]
[1752989028707,6.94255579,3643.6,3643.5,0.438]
[1752989029108,2.74461369,3643.5,3643.4,0.8186]
[1752989030013,2.74461369,3643.5,3643.4,1.2566]
[1752989031070,2.74461369,3643.5,3643.4,0.8186]
[1752989032004,0.1368,3643.9,3643.4,0.8186]
[1752989032172,4.196,3643.8,3643.4,0.8186]
[1752989032530,6.6903991,3643.8,3643.5,0.438]
[1752989032823,4.196,3643.7,3643.6,0.57734]
[1752989033172,6.94046304,3643.7,3643.4,0.9554]
[1752989033416,2.74453926,3643.6,3643.4,0.8186]
[1752989033713,4.196,3643.5,3643.4,0.8186]
[1752989033917,4.196,3643.5,3643.4,1.2566]
[1752989034571,0.1368,3643.8,3643.4,1.2566]
[1752989034803,4.197,3643.7,3643.5,0.438]
[1752989035109,2.88124541,3643.8,3643.6,0.438]
[1752989035309,4.196,3643.7,3643.6,0.438]
[1752989039836,6.94052736,3643.7,3643.4,0.8186]
[1752989040222,6.94052736,3643.7,3643.4,1.2789]
[1752989040932,4.196,3643.7,3643.4,1.2789]
[1752989041090,4.196,3643.7,3643.5,0.4603]
[1752989041840,2.74455895,3643.6,3643.4,0.001]
[1752989042140,6.94061369,3643.5,3643.4,0.001]
[1752989045031,7.40631369,3643.5,3643.4,0.001]
[1752989045552,6.94061369,3643.5,3643.4,0.001]
[1752989049038,10.08671379,3643.5,3643.4,0.001]
[1752989049242,10.55241379,3643.5,3643.4,0.001]
[1752989049456,11.37981379,3643.5,3643.4,0.001]
[1752989051121,10.08671379,3643.5,3643.4,0.001]
[1752989051327,6.94061369,3643.5,3643.4,0.001]
[1752989051546,6.94061369,3643.5,3643.4,0.4613]
[1752989052063,2.74461369,3643.5,3643.4,0.4613]
[1752989052262,6.94061369,3643.5,3643.4,0.4613]
[1752989053468,6.94061369,3643.5,3643.4,0.001]
[1752989054267,2.74461369,3643.5,3643.4,0.001]
[1752989054467,6.94061369,3643.5,3643.4,0.001]
[1752989056563,7.40631369,3643.5,3643.4,0.001]
[1752989057176,6.94061369,3643.5,3643.4,0.001]
[1752989057971,2.74461369,3643.5,3643.4,0.001]
[1752989058177,6.94061369,3643.5,3643.4,0.001]
[1752989059279,12.90577768,3643.5,3643.4,0.001]
[1752989059870,9.75967758,3643.5,3643.4,0.001]
[1752989060278,2.74461369,3643.5,3643.4,0.001]
[1752989060608,6.94061369,3643.5,3643.4,0.001]
[1752989061578,7.40631369,3643.5,3643.4,0.001]
[1752989061868,7.95631369,3643.5,3643.4,0.001]
[1752989063976,2.74519726,3642.8,3641.9,0.8153]
[1752989064273,2.74529182,3642.6,3642.1,0.4603]
[1752989064499,4.196,3642.5,3642.1,0.4603]
[1752989064694,2.74553146,3642.3,3642.1,0.4603]
[1752989064894,4.196,3642.2,3642.1,0.4603]
[1752989065113,4.196,3642.2,3641.9,0.8153]
[1752989065265,4.196,3642.2,3641.5,0.8153]
[1752989065266,2.74567988,3642.1,3641.5,0.8153]
[1752989065463,2.74583482,3641.9,3641.1,2.74636291]
[1752989065682,4.196,3641.8,3641.2,0.4603]
[1752989065875,4.196,3641.8,3641.2,3.20661956]
[1752989066177,6.94190089,3641.8,3641.0,3.56173387]
[1752989066501,6.94191644,3641.8,3641.1,0.4603]
[1752989066998,2.74582357,3641.9,3641.1,1.43716772]
[1752989067303,4.206,3641.8,3641.2,0.4603]
[1752989068103,6.95190221,3641.8,3641.2,0.4603]
[1752989068484,4.206,3641.8,3641.2,0.4603]
[1752989068785,6.9519141,3641.8,3641.2,0.4603]
[1752989069370,2.74597124,3641.7,3641.2,0.4603]
[1752989069601,4.206,3641.6,3641.0,0.8153]
[1752989069994,2.74613431,3641.5,3641.0,0.8153]
[1752989070202,4.206,3641.4,3641.0,0.8153]
[1752989070507,4.205,3641.3,3641.1,0.4287]
[1752989070682,4.205,3641.3,3641.2,0.4287]
[1752989072603,4.204,3641.3,3641.2,0.4287]
[1752989073810,4.204,3641.3,3641.1,0.001]
[1752989074114,4.204,3641.3,3641.2,0.5655]
[1752989074485,4.204,3641.3,3641.2,1.3228845]
[1752989074731,4.204,3641.3,3641.2,4.06923185]
[1752989075597,4.204,3641.3,3641.2,0.5655]
[1752989077586,4.201,3641.3,3641.2,0.1368]
[1752989078321,4.201,3641.3,3641.2,3.31184735]
[1752989078828,4.201,3641.3,3641.2,0.5655]
[1752989078988,4.201,3641.3,3641.2,0.1368]
[1752989080750,2.74621145,3641.4,3641.2,0.1368]
[1752989080956,4.202,3641.3,3641.2,0.1368]
[1752989084222,6.94527193,3641.3,3641.2,0.1368]
[1752989084930,7.40187193,3641.3,3641.2,0.1368]
[1752989085329,6.94527193,3641.3,3641.2,0.1368]
[1752989085559,2.74634735,3641.2,3641.1,0.001]
[1752989085769,3.20294735,3641.2,3641.1,0.001]
[1752989085978,6.94534735,3641.2,3641.1,0.001]
[1752989086760,7.40194735,3641.2,3641.1,0.001]
[1752989087523,8.15544735,3641.2,3641.1,0.001]
[1752989087761,9.11617728,3641.2,3641.1,0.001]
[1752989088654,8.36267728,3641.2,3641.1,0.001]
[1752989088836,6.94534735,3641.2,3641.1,0.001]
[1752989089032,0.1368,3641.4,3641.1,0.001]
[1752989089330,4.198,3641.3,3641.1,0.001]
[1752989089556,0.1368,3641.6,3641.1,0.001]
[1752989089723,4.198,3641.5,3641.2,3.3117759]
[1752989089924,4.198,3641.4,3641.3,0.4287]
[1752989090457,2.74584828,3641.9,3641.3,0.4287]
[1752989090676,4.198,3641.8,3641.3,0.4287]
[1752989090960,6.94396385,3641.8,3641.3,0.4287]
[1752989091165,4.198,3641.7,3641.2,0.1368]
[1752989091462,2.74604569,3641.6,3641.2,0.1368]
[1752989091665,4.198,3641.5,3641.2,0.1368]
[1752989092144,6.94415626,3641.5,3641.2,0.1368]
[1752989092682,4.198,3641.5,3641.2,0.1368]
[1752989092856,6.94413835,3641.5,3641.2,0.1368]
[1752989093052,0.1368,3641.7,3641.2,0.1368]
[1752989093257,4.198,3641.6,3641.2,0.5655]
[1752989093580,4.198,3641.5,3641.3,0.4287]
[1752989094160,0.4566,3641.9,3641.2,0.1368]
[1752989094355,7.08070437,3641.8,3641.2,0.5655]
[1752989094565,2.88270437,3641.8,3641.2,0.5655]
[1752989094860,6.94399855,3641.7,3641.2,0.5655]
[1752989095068,2.7460497,3641.6,3641.3,0.4287]
[1752989095468,4.198,3641.7,3641.2,0.1368]
[1752989095676,6.94398387,3641.7,3641.3,0.4287]
[1752989096287,4.198,3641.7,3641.3,0.4287]
[1752989096454,4.198,3641.7,3641.2,2.88312141]
[1752989096654,3.6027001,3642.1,3641.2,2.88312141]
[1752989096655,4.198,3641.6,3641.4,3.52599278]
[1752989096888,4.198,3641.5,3641.4,0.7798]
[1752989097387,4.198,3641.5,3641.4,0.9166]
[1752989097590,4.198,3641.5,3641.4,1.3453]
[1752989098385,4.198,3641.5,3641.4,4.09149651]
[1752989098685,0.8071,3642.3,3641.4,2.02918315]
[1752989098892,6.94364233,3642.2,3641.5,3.20031559]
[1752989099189,6.94364233,3642.2,3641.4,0.9166]
[1752989099190,2.74594915,3641.8,3641.4,0.1368]
[1752989099354,4.201,3641.7,3641.4,0.1368]
[1752989099555,7.40548034,3641.7,3641.4,0.1368]
[1752989099981,2.74606468,3641.6,3641.4,0.1368]
[1752989100178,7.40547626,3641.7,3641.4,0.1368]
[1752989100353,4.201,3641.7,3641.4,0.1368]
[1752989100553,4.201,3641.7,3641.4,0.591]
[1752989100986,4.201,3641.6,3641.5,0.7533]
[1752989101178,4.201,3641.6,3641.5,1.2075]
[1752989101374,4.201,3641.6,3641.5,2.01429753]
[1752989101578,4.201,3641.6,3641.5,0.8901]
[1752989102751,4.201,3641.6,3641.5,0.1368]
[1752989104069,4.201,3641.6,3641.5,3.3371211]
[1752989104271,4.201,3641.6,3641.5,0.591]
[1752989104508,4.201,3641.6,3641.5,3.3371211]
[1752989104715,4.201,3641.6,3641.5,4.02276749]
[1752989104911,4.201,3641.6,3641.5,4.79576749]
[1752989105112,6.588,3642.4,3641.5,2.04964639]
[1752989105312,4.202,3642.3,3642.2,0.1368]
[1752989105514,4.202,3642.3,3642.2,3.65539332]
[1752989106086,4.202,3642.3,3642.2,4.10959332]
[1752989106484,6.588,3642.4,3642.3,2.74551794]
[1752989106786,4.203,3642.4,3642.3,3.19971794]
[1752989109206,0.1368,3643.2,3642.3,0.4542]
[1752989109381,0.002,3643.4,3642.8,2.74511802]
[1752989109598,4.202,3643.3,3643.0,0.1368]
[1752989109847,4.201,3643.2,3643.0,0.1368]
[1752989110002,0.002,3643.4,3643.1,0.786]
[1752989110202,4.201,3643.3,3643.2,0.1368]
[1752989111405,4.201,3643.3,3643.2,2.8816397]
[1752989111600,4.201,3643.3,3643.2,0.1368]
[1752989111831,4.2,3643.3,3643.2,0.1368]
[1752989112041,4.2,3643.3,3643.2,4.1218397]
[1752989112342,0.002,3643.4,3643.3,2.74476436]
[1752989112501,0.002,3644.2,3644.1,6.54816179]
[1752989112704,0.002,3644.2,3644.1,7.93160387]
[1752989112938,0.002,3644.2,3643.6,0.4542]
[1752989113258,0.002,3644.2,3643.8,0.804]
[1752989113443,4.225,3644.2,3644.1,2.74416179]
[1752989113616,0.002,3644.2,3644.1,4.00236179]
[1752989113824,0.002,3644.2,3644.1,4.0298034]
[1752989114046,0.002,3644.2,3644.1,4.70721498]
[1752989116660,0.002,3644.2,3644.1,7.67977337]
[1752989117472,0.002,3644.2,3644.1,12.33977335]
[1752989120268,0.002,3644.2,3644.1,16.56377335]
[1752989121261,0.002,3644.2,3644.1,12.33977335]
[1752989121468,0.002,3644.2,3644.1,16.56077335]
[1752989121665,0.002,3644.2,3644.1,11.90077337]
[1752989122437,0.002,3644.2,3644.1,12.03757337]
[1752989123374,0.002,3644.2,3644.1,12.03557337]
[1752989126478,0.002,3644.2,3644.1,7.36237337]
[1752989126675,0.4605,3644.2,3644.1,0.1368]
[1752989127457,1.2282,3644.2,3644.1,0.1368]
[1752989129585,3.97228649,3644.2,3644.1,0.1368]
[1752989131153,2.74454656,3643.6,3642.8,0.8272]
[1752989131378,2.74454656,3643.6,3642.9,0.54964]
[1752989131379,3.21811369,3643.5,3642.9,0.54964]
[1752989131573,2.74472534,3643.4,3642.9,0.54964]
[1752989131782,2.74466147,3643.5,3643.4,0.1368]
[1752989131989,2.74478184,3643.3,3643.2,0.1368]
[1752989132382,3.21828184,3643.3,3643.2,0.1368]
[1752989133504,0.4735,3643.3,3643.2,0.1368]
[1752989133707,2.74463529,3643.5,3643.2,0.1368]
[1752989133998,1.2412,3643.6,3643.2,0.1368]
[1752989134160,2.74476436,3643.3,3643.2,0.1368]
[1752989135169,3.21826436,3643.3,3643.2,0.1368]
[1752989135494,2.74470336,3643.4,3643.2,0.1368]
[1752989136192,3.21820336,3643.4,3643.2,0.1368]
[1752989136891,2.74463817,3643.5,3643.2,0.1368]
[1752989137096,4.221,3643.7,3643.2,0.1368]
[1752989137291,4.221,3643.7,3643.4,0.1368]
[1752989137598,7.43903024,3643.7,3643.4,0.1368]
[1752989138093,6.96553024,3643.7,3643.4,0.1368]
[1752989138597,2.74456236,3643.6,3643.4,0.1368]
[1752989138778,2.74461369,3643.5,3643.4,0.1368]
[1752989138983,3.21811369,3643.5,3643.4,0.1368]
[1752989139181,2.74461369,3643.5,3643.4,0.1368]
[1752989139360,3.21811369,3643.5,3643.4,0.1368]
[1752989139985,2.7448397,3643.2,3643.1,0.001]
[1752989140191,6.9638397,3643.2,3643.1,0.001]
[1752989140386,6.9638397,3643.2,3643.1,0.1378]
[1752989140591,7.4373397,3643.2,3643.1,0.1378]
[1752989143099,9.43241831,3643.2,3643.1,0.001]
[1752989143302,9.98241831,3643.2,3643.1,0.001]
[1752989149491,8.3269397,3643.2,3643.1,0.001]
[1752989153622,6.9628397,3643.2,3643.1,0.001]
[1752989155692,6.587,3643.3,3643.1,0.001]
[1752989156024,4.217,3643.2,3643.1,0.1378]
[1752989157008,6.9618397,3643.2,3643.1,0.1378]
[1752989157490,4.217,3643.2,3643.1,0.1378]
[1752989162537,6.587,3643.3,3643.1,1.65158634]
[1752989162838,6.587,3643.3,3643.2,0.473]
[1752989163016,10.8,3643.3,3643.2,0.473]
[1752989163205,10.8,3643.3,3643.1,3.63519095]
[1752989163407,4.214,3643.2,3643.1,4.10819095]
[1752989163610,4.214,3643.2,3643.1,4.79351622]
[1752989165741,0.002,3643.8,3643.5,2.74459352]
[1752989165958,4.212,3643.7,3643.2,0.7525]
[1752989166114,4.6475,3643.7,3643.2,3.49732502]
[1752989166309,4.6475,3643.7,3643.6,0.1368]
[1752989168259,4.212,3643.7,3643.6,0.1368]
[1752989169436,7.39196304,3643.7,3643.6,0.1368]
[1752989169672,2.7448397,3643.2,3643.1,0.001]
[1752989169852,4.21,3643.2,3643.1,0.001]
[1752989170217,4.21,3643.2,3643.1,0.1378]
[1752989170218,4.6455,3643.2,3643.1,0.1378]
[1752989171652,7.3903397,3643.2,3643.1,0.1378]
[1752989172753,7.3903397,3643.2,3643.1,0.001]
[1752989172928,9.54765285,3643.2,3643.1,0.001]
[1752989173747,9.68445285,3643.2,3643.1,0.001]
[1752989184268,10.23445285,3643.2,3643.1,0.001]
[1752989185057,3.57596719,3642.5,3642.4,0.001]
[1752989185372,7.77896719,3642.5,3642.4,0.001]
[1752989185769,9.13083392,3642.5,3642.4,0.001]
[1752989186680,10.03083392,3642.5,3642.4,0.001]
[1752989193389,10.04673392,3642.5,3642.4,0.001]
[1752989198502,8.76273392,3642.5,3642.4,0.001]
[1752989198704,9.21413392,3642.5,3642.4,0.001]
[1752989199213,10.01723392,3642.5,3642.4,0.001]
[1752989202225,10.56723392,3642.5,3642.4,0.001]
[1752989203287,0.9,3642.5,3642.4,0.443]
[1752989203498,5.101,3642.5,3642.4,1.3358]
[1752989203701,4.201,3642.5,3642.4,0.1378]
[1752989204010,7.39776719,3642.5,3642.4,0.001]
[1752989204335,8.74035715,3642.5,3642.4,0.001]
[1752989205424,9.64035715,3642.5,3642.4,0.001]
[1752989205821,9.18895715,3642.5,3642.4,0.001]
[1752989207522,9.64035715,3642.5,3642.4,0.001]
[1752989208522,9.18895715,3642.5,3642.4,0.001]
[1752989208890,0.9,3642.5,3642.4,0.001]
[1752989209090,5.101,3642.5,3642.4,0.443]
[1752989209286,7.84636719,3642.5,3642.4,0.001]
[1752989210386,5.101,3642.5,3642.4,0.001]
[1752989211042,0.9,3642.5,3642.4,0.001]
[1752989211248,5.101,3642.5,3642.4,0.443]
[1752989211422,0.002,3643.1,3642.4,0.855539]
[1752989211609,6.94603818,3643.0,3642.5,0.442]
[1752989211812,2.74508044,3642.9,3642.6,0.442]
[1752989212007,4.201,3642.8,3642.6,0.442]
[1752989214146,4.201,3642.8,3642.4,0.1378]
[1752989214349,4.201,3642.8,3642.6,0.442]
[1752989215357,4.201,3642.8,3642.4,0.1378]
[1752989215652,4.201,3642.8,3642.6,0.442]
[1752989217945,2.74508921,3642.9,3642.7,0.4294]
[1752989218148,4.201,3642.8,3642.4,0.1378]
[1752989218458,4.201,3642.8,3642.4,0.69758]
[1752989218659,4.201,3642.8,3642.5,0.4294]
[1752989218844,4.201,3642.8,3642.4,3.44301713]
[1752989219041,4.201,3642.8,3642.6,0.4294]
[1752989219212,4.201,3642.8,3642.7,0.4294]
[1752989220214,4.201,3642.8,3642.4,0.69758]
[1752989220419,4.201,3642.8,3642.4,1.12698]
[1752989220722,6.94614808,3642.8,3642.4,0.5672]
[1752989221314,6.94614808,3642.8,3642.4,0.1378]
[1752989221518,6.94614808,3642.8,3642.5,0.4294]
[1752989221958,6.94616792,3642.8,3642.5,0.4294]
[1752989222171,6.94616792,3642.8,3642.4,0.1378]
[1752989223256,4.201,3642.8,3642.4,0.5672]
[1752989224564,4.201,3642.8,3642.5,0.4294]
[1752989224737,4.201,3642.8,3642.4,2.88322322]
[1752989224931,2.74500923,3643.0,3642.6,0.4294]
[1752989225124,4.2,3642.9,3642.7,0.4294]
[1752989226258,4.2,3642.9,3642.4,0.1378]
[1752989226421,6.9450673,3642.9,3642.4,0.1378]
[1752989226743,4.2,3642.9,3642.5,0.4294]
[1752989227318,6.94508055,3642.9,3642.5,0.4294]
[1752989227765,4.2,3642.9,3642.5,0.4294]
[1752989227932,4.2,3642.9,3642.4,2.88321947]
[1752989228238,4.2,3642.9,3642.6,0.4294]
[1752989230127,4.2,3642.9,3642.4,2.88321947]
[1752989230324,4.2,3642.9,3642.5,0.4294]
[1752989230938,4.2,3642.9,3642.5,3.1747588]
[1752989231155,4.2,3642.9,3642.5,0.4294]
[1752989231360,4.2,3642.9,3642.4,0.1378]
[1752989231655,4.6661,3642.9,3642.4,0.5672]
[1752989231863,6.9451306,3642.9,3642.4,0.1378]
[1752989232038,0.4661,3642.8,3642.4,0.1378]
[1752989232240,4.2,3642.7,3642.4,0.1378]
[1752989232961,4.6661,3642.7,3642.4,0.1378]
[1752989233529,6.97239348,3642.7,3642.4,0.1378]
[1752989233735,3.21139186,3642.6,3642.4,0.1378]
[1752989233931,4.2,3642.5,3642.4,0.1378]
[1752989234171,4.6661,3642.5,3642.4,0.1378]
[1752989235274,4.6661,3642.5,3642.4,0.001]
[1752989236033,4.2,3642.5,3642.4,0.001]
[1752989236770,4.6661,3642.5,3642.4,0.001]
[1752989237063,7.41146719,3642.5,3642.4,0.001]
[1752989238165,6.94536719,3642.5,3642.4,0.001]
[1752989239569,4.2,3642.5,3642.4,0.001]
[1752989239864,6.94536719,3642.5,3642.4,0.001]
[1752989241176,9.18413694,3642.5,3642.4,0.001]
[1752989241375,9.65023694,3642.5,3642.4,0.001]
[1752989241954,10.55023694,3642.5,3642.4,0.001]
[1752989242151,11.10023694,3642.5,3642.4,0.001]
[1752989245082,6.90023694,3642.5,3642.4,0.001]
[1752989245378,8.67026719,3642.5,3642.4,0.001]
[1752989245581,7.84436719,3642.5,3642.4,0.001]
[1752989247484,8.31046719,3642.5,3642.4,0.001]
[1752989248062,7.84436719,3642.5,3642.4,0.001]
[1752989249989,8.27286719,3642.5,3642.4,0.001]
[1752989251965,7.84436719,3642.5,3642.4,0.001]
[1752989253463,5.099,3642.5,3642.4,0.001]
[1752989253670,5.099,3642.5,3642.4,0.4361]
[1752989254680,4.199,3642.5,3642.4,0.4361]
[1752989254885,5.89132206,3642.7,3642.4,0.001]
[1752989255195,6.9443042,3642.6,3642.4,0.001]
[1752989256493,2.74536719,3642.5,3642.4,0.001]
[1752989259299,3.20102713,3642.5,3642.4,0.001]
[1752989259657,2.74597028,3641.7,3641.5,0.001]
[1752989259871,0.7546,3641.9,3641.5,0.001]
[1752989260081,2.74597028,3641.7,3641.5,0.001]
[1752989261268,3.17447028,3641.7,3641.5,0.001]
[1752989261764,2.74597028,3641.7,3641.5,0.001]
[1752989262004,3.17447028,3641.7,3641.5,0.001]
[1752989263524,4.07447028,3641.7,3641.5,0.001]
[1752989264518,5.114,3641.7,3641.5,0.001]
[1752989265080,7.85997028,3641.7,3641.5,0.001]
[1752989265508,8.28847028,3641.7,3641.5,0.001]
[1752989265676,5.114,3641.7,3641.5,0.001]
[1752989266277,3.64597028,3641.7,3641.5,0.001]
[1752989266519,5.118,3641.7,3641.5,0.001]
[1752989266889,0.9,3641.7,3641.5,0.001]
[1752989267218,5.118,3641.7,3641.5,0.001]
[1752989267382,5.5465,3641.7,3641.5,0.001]
[1752989267906,7.86397028,3641.7,3641.5,0.001]
[1752989268106,8.29247028,3641.7,3641.5,0.001]
[1752989268315,9.35827969,3641.7,3641.5,0.001]
[1752989268616,9.78677969,3641.7,3641.5,0.001]
[1752989269696,8.29247028,3641.7,3641.5,0.001]
[1752989275140,8.41397028,3641.7,3641.5,0.001]
[1752989275344,9.60757028,3641.7,3641.5,0.001]
[1752989276040,9.60857028,3641.7,3641.5,0.001]
[1752989277843,9.74427418,3641.7,3641.5,0.001]
[1752989278336,20.89989398,3641.7,3641.5,0.001]
[1752989278543,20.76419008,3641.7,3641.5,0.001]
[1752989280333,20.90075564,3641.7,3641.5,0.001]
[1752989280532,0.55,3641.0,3640.9,0.001]
[1752989280841,10.65859831,3641.0,3640.9,0.001]
[1752989281042,11.33945839,3641.0,3640.9,0.001]
[1752989281247,11.80315839,3641.0,3640.9,0.001]
[1752989283626,10.14359831,3641.0,3640.9,0.001]
[1752989284562,10.60729831,3641.0,3640.9,0.001]
[1752989285252,10.74409831,3641.0,3640.9,0.001]
[1752989286321,10.28039831,3641.0,3640.9,0.001]
[1752989286943,11.65319831,3641.0,3640.9,0.001]
[1752989287254,13.55685339,3641.0,3640.9,0.001]
[1752989287617,12.11689831,3641.0,3640.9,0.001]
[1752989287950,11.65319831,3641.0,3640.9,0.001]
[1752989288659,10.83039831,3641.0,3640.9,0.001]
[1752989288873,6.02939831,3641.0,3640.9,0.001]
[1752989289167,10.27839831,3641.0,3640.9,0.001]
[1752989290003,3.2829001,3641.0,3640.9,0.001]
[1752989290307,7.13029821,3641.0,3640.9,0.001]
[1752989291287,4.3838,3641.0,3640.9,0.001]
[1752989291494,4.3838,3641.0,3640.9,0.4288]
[1752989293010,4.3838,3641.0,3640.9,0.001]
[1752989293162,7.13029821,3641.0,3640.9,0.001]
[1752989298105,7.68029821,3641.0,3640.9,0.001]
[1752989298301,9.51831496,3641.0,3640.9,0.001]
[1752989298626,0.1368,3641.0,3640.9,0.001]
[1752989298789,4.239,3641.0,3640.9,0.4288]
[1752989302997,4.239,3641.0,3640.9,0.001]
[1752989304727,4.239,3641.0,3640.9,0.4288]
[1752989304893,6.0292325,3641.3,3640.9,0.4288]
[1752989305134,6.98136193,3641.2,3640.9,1.2594]
[1752989305544,0.4637,3641.1,3640.9,0.001]
[1752989305751,4.232,3641.0,3640.9,0.001]
[1752989306573,8.29709821,3641.0,3640.9,0.001]
[1752989306749,5.53276571,3641.0,3640.9,0.001]
[1752989306949,7.11529821,3641.0,3640.9,0.001]
[1752989308699,4.232,3641.0,3640.9,0.001]
[1752989312271,0.1368,3641.2,3641.0,0.8193]
[1752989312436,4.227,3641.1,3641.0,1.3887]
[1752989312970,4.227,3641.1,3641.0,0.9561]
[1752989313430,4.227,3641.1,3641.0,0.1368]
[1752989313633,4.227,3641.1,3640.9,0.001]
[1752989317173,4.227,3641.1,3640.9,0.4336]
[1752989318253,4.227,3641.1,3640.9,3.18017137]
[1752989318778,4.227,3641.1,3640.9,0.4336]
[1752989318941,4.227,3641.1,3640.9,0.001]
[1752989319646,4.227,3641.1,3640.9,3.18015903]
[1752989319840,4.227,3641.1,3641.0,0.4326]
[1752989320065,4.227,3641.1,3641.0,2.74649821]
[1752989320275,4.227,3641.1,3641.0,3.17909821]
[1752989321697,0.1388,3641.5,3641.0,3.17909821]
[1752989321898,4.22,3641.4,3641.1,1.1955]
[1752989323408,4.22,3641.4,3641.1,3.94191275]
[1752989323568,4.22,3641.4,3641.2,0.4326]
[1752989324289,4.22,3641.4,3641.1,3.50931967]
[1752989324878,4.22,3641.4,3641.1,3.94191967]
[1752989325101,4.22,3641.4,3641.1,1.1955]
[1752989326066,0.9,3641.2,3641.1,3.94192278]
[1752989326267,5.117,3641.2,3641.1,3.94192278]
[1752989326793,5.116,3641.2,3641.1,3.94192278]
[1752989327199,5.116,3641.2,3641.1,4.07872278]
[1752989327716,5.116,3641.2,3641.1,4.76145195]
[1752989329525,0.9,3641.2,3641.1,4.76145195]
[1752989329691,5.115,3641.2,3641.1,7.76145195]
[1752989339180,0.9,3641.2,3641.1,7.76145195]
[1752989339969,4.209,3641.3,3641.2,6.53204735]
[1752989340161,4.209,3641.3,3641.2,8.28076417]
[1752989340357,4.209,3641.3,3641.2,8.70936417]
[1752989340872,0.002,3641.5,3641.4,2.74619651]
[1752989340873,4.211,3641.5,3641.4,2.74619651]
[1752989341175,4.211,3641.5,3641.4,3.96049651]
[1752989341335,0.002,3641.5,3641.4,9.48909404]
[1752989343140,4.207,3641.8,3641.7,3.53827028]
[1752989343339,0.002,3642.3,3642.2,2.74559332]
[1752989343664,4.209,3642.3,3642.2,2.74559332]
[1752989343868,4.209,3642.3,3642.2,3.86012102]
[1752989344239,4.209,3642.3,3642.2,4.65242102]
[1752989345340,0.002,3642.3,3642.2,4.22382102]
[1752989345675,0.002,3642.3,3642.2,3.43152102]
[1752989346064,3.18401794,3642.3,3642.2,0.1368]